Department Family,Entity,Date Paid,Expense Type,Expenses Area,Supplier Name,Transaction Reference,Total,VAT Registration Number,Vlookup
Department of Health,Imperial College Healthcare NHS Trust,02/01/2023,Agency Nursing: Qualified,Div Of Med & Integrated Care,Reed Specialist Recruitment Ltd,4735531,"169,757.13",Optional requirement only,0
Department of Health,Imperial College Healthcare NHS Trust,02/01/2023,Agency Nursing: Qualified,"Div Of Surg, Cardiov & Cancer",Reed Specialist Recruitment Ltd,4735531,"305,161.52",Optional requirement only,0
Department of Health,Imperial College Healthcare NHS Trust,02/01/2023,Agency Nursing: Qualified,Div Of Women & Clin Support,Reed Specialist Recruitment Ltd,4735531,"31,253.70",Optional requirement only,0
Department of Health,Imperial College Healthcare NHS Trust,02/01/2023,Agency Nursing: Qualified,West London Children'S Healthcare,Reed Specialist Recruitment Ltd,4735531,"66,644.36",Optional requirement only,0
Department of Health,Imperial College Healthcare NHS Trust,02/01/2023,Bldg/Eng Equip Maint/Rep,Estates Directorate,Cbre Managed Services Ltd,4736893,"299,484.52",Optional requirement only,0
Department of Health,Imperial College Healthcare NHS Trust,02/01/2023,Blood Products,Pathology,Nhs Blood And Transplant,4727743,"51,292.73",Optional requirement only,0
Department of Health,Imperial College Healthcare NHS Trust,02/01/2023,Blood Products,Pathology,Nhs Blood And Transplant,4729153,"318,514.62",Optional requirement only,0
Department of Health,Imperial College Healthcare NHS Trust,02/01/2023,Blood Products,Pathology,Nhs Blood And Transplant,4729155,"166,973.52",Optional requirement only,0
Department of Health,Imperial College Healthcare NHS Trust,02/01/2023,Blood Products,Pathology,Nhs Blood And Transplant,4729156,"72,203.89",Optional requirement only,0
Department of Health,Imperial College Healthcare NHS Trust,02/01/2023,Computer Software/License,Information & Comms Technology,Cis Oncology Ltd,4723413,"57,698.40",Optional requirement only,0
Department of Health,Imperial College Healthcare NHS Trust,02/01/2023,Computer Software/License,Information & Comms Technology,Identity Experts Limited,4734026,"39,000.00",Optional requirement only,0
Department of Health,Imperial College Healthcare NHS Trust,02/01/2023,Consultancy Fees,Information & Comms Technology,Insignia Health,4736911,"41,947.99",Optional requirement only,0
Department of Health,Imperial College Healthcare NHS Trust,02/01/2023,Contr Other External,Div Of Women & Clin Support,Alliance Diagnostic Services Ltd,4672985,"37,200.00",Optional requirement only,0
Department of Health,Imperial College Healthcare NHS Trust,02/01/2023,Contr Other External,Div Of Women & Clin Support,Alliance Diagnostic Services Ltd,4719262,"74,400.00",Optional requirement only,0
Department of Health,Imperial College Healthcare NHS Trust,02/01/2023,Contr Refuse & Clin Waste,Estates Directorate,Grundon Waste Management Ltd,4724668,"37,640.10",Optional requirement only,0
Department of Health,Imperial College Healthcare NHS Trust,02/01/2023,Contr Refuse & Clin Waste,Estates Directorate,Grundon Waste Management Ltd,4724671,"42,198.88",Optional requirement only,0
Department of Health,Imperial College Healthcare NHS Trust,02/01/2023,Contr Refuse & Clin Waste,Estates Directorate,Grundon Waste Management Ltd,4724674,"36,906.78",Optional requirement only,0
Department of Health,Imperial College Healthcare NHS Trust,02/01/2023,Cy Auc -Addns-Bd Purchased,Capital Summary,Cbre Managed Services Ltd,4736893,"1,076,084.70",Optional requirement only,0
Department of Health,Imperial College Healthcare NHS Trust,02/01/2023,Cy Auc -Addns-Bd Purchased,Capital Summary,M&J Group (Construction & Roofin) Ltd [Cs],4732192,"552,810.04",Optional requirement only,0
Department of Health,Imperial College Healthcare NHS Trust,02/01/2023,Cy Auc -Addns- F&F Purchased,Capital Summary,East Thames Signs Limited,4735967,"93,600.00",Optional requirement only,0
Department of Health,Imperial College Healthcare NHS Trust,02/01/2023,Cy Auc -Addns- It Eqpt-Addns,Capital Summary,Insight Direct (Uk) Ltd,4737352,"69,370.50",Optional requirement only,0
Department of Health,Imperial College Healthcare NHS Trust,02/01/2023,Cy Auc -Addns- P & M-Purchased,Capital Summary,Medtronic Ltd,4728636,"32,719.87",Optional requirement only,0
Department of Health,Imperial College Healthcare NHS Trust,02/01/2023,Cy Auc -Addns- P & M-Purchased,Capital Summary,Medtronic Ltd,4733564,"37,070.21",Optional requirement only,0
Department of Health,Imperial College Healthcare NHS Trust,02/01/2023,Cy Auc -Addns- Prof Fee)-Purch,Capital Summary,Freeman Ankerman Partnership,4727164,"57,600.00",Optional requirement only,0
Department of Health,Imperial College Healthcare NHS Trust,02/01/2023,Cy Auc -Addns- Prof Fee)-Purch,Capital Summary,Freeman Ankerman Partnership,4734006,"30,960.00",Optional requirement only,0
Department of Health,Imperial College Healthcare NHS Trust,02/01/2023,Dist Award - Local Cea,Div Of Women & Clin Support,Imperial College London,4736904,"33,130.15",Optional requirement only,0
Department of Health,Imperial College Healthcare NHS Trust,02/01/2023,Dist Award - Nat Cea,Div Of Med & Integrated Care,Imperial College London,4736904,"77,071.96",Optional requirement only,0
Department of Health,Imperial College Healthcare NHS Trust,02/01/2023,Dist Award - Nat Cea,"Div Of Surg, Cardiov & Cancer",Imperial College London,4736904,"47,790.95",Optional requirement only,0
Department of Health,Imperial College Healthcare NHS Trust,02/01/2023,Dist Award - Nat Cea,Div Of Women & Clin Support,Imperial College London,4736904,"36,517.63",Optional requirement only,0
Department of Health,Imperial College Healthcare NHS Trust,02/01/2023,Engineering Contracts,Rd Surgery & Cancer Division,Accenture (Uk) Ltd,4725760,"55,388.64",Optional requirement only,0
Department of Health,Imperial College Healthcare NHS Trust,02/01/2023,Ext Contr Logistics,Div Of Women & Clin Support,Eleanor Hospital Logistics Ltd,4696254,"59,769.91",Optional requirement only,0
Department of Health,Imperial College Healthcare NHS Trust,02/01/2023,Ext Contr Logistics,Div Of Women & Clin Support,Eleanor Hospital Logistics Ltd,4696400,"56,124.24",Optional requirement only,0
Department of Health,Imperial College Healthcare NHS Trust,02/01/2023,Ext Contr Logistics,Div Of Women & Clin Support,Eleanor Hospital Logistics Ltd,4709443,"59,577.26",Optional requirement only,0
Department of Health,Imperial College Healthcare NHS Trust,02/01/2023,Gas,Estates Directorate,Sustainable Energy First Ltd,4731013,"101,561.40",Optional requirement only,0
Department of Health,Imperial College Healthcare NHS Trust,02/01/2023,Home Electronics Cr,Ichnt Balance Sheet,Northumbria Healthcare Nhs Foundation Trust,4732185,"30,681.66",Optional requirement only,0
Department of Health,Imperial College Healthcare NHS Trust,02/01/2023,Ic Pay Recharge In: Med,Div Of Med & Integrated Care,Imperial College London,4736904,"146,472.69",Optional requirement only,0
Department of Health,Imperial College Healthcare NHS Trust,02/01/2023,Ic Pay Recharge In: Med,"Div Of Surg, Cardiov & Cancer",Imperial College London,4736903,"38,202.63",Optional requirement only,0
Department of Health,Imperial College Healthcare NHS Trust,02/01/2023,Ic Pay Recharge In: Med,"Div Of Surg, Cardiov & Cancer",Imperial College London,4736904,"408,832.65",Optional requirement only,0
Department of Health,Imperial College Healthcare NHS Trust,02/01/2023,Ic Pay Recharge In: Med,Div Of Women & Clin Support,Imperial College London,4736904,"153,493.12",Optional requirement only,0
Department of Health,Imperial College Healthcare NHS Trust,02/01/2023,Ic Pay Recharge In: Med,Pathology,Imperial College London,4736905,"39,589.71",Optional requirement only,0
Department of Health,Imperial College Healthcare NHS Trust,02/01/2023,Isotopes,Div Of Women & Clin Support,Curium Pharma Uk Ltd,4724781,"50,907.60",Optional requirement only,0
Department of Health,Imperial College Healthcare NHS Trust,02/01/2023,Items Pending Investigation,Ichnt Balance Sheet,Medtronic Ltd,4716587,"58,200.00",Optional requirement only,0
Department of Health,Imperial College Healthcare NHS Trust,02/01/2023,Jac - Stock,Balance Sheet St Marys,Aah Pharmaceuticals Limited,4737302,"46,835.06",Optional requirement only,Stock
Department of Health,Imperial College Healthcare NHS Trust,02/01/2023,Jac - Stock,Balance Sheet St Marys,Oxford Health  Nhs Foundation Trust,4735738,"34,583.04",Optional requirement only,Stock
Department of Health,Imperial College Healthcare NHS Trust,02/01/2023,Jac - Stock,Balance Sheet St Marys,Qualasept Ltd,4737221,"55,803.84",Optional requirement only,Stock
Department of Health,Imperial College Healthcare NHS Trust,02/01/2023,Laboratory Culture Media,Pathology,Dhl Supply Chain  (Former Excel),51858,"58,500.00",Optional requirement only,0
Department of Health,Imperial College Healthcare NHS Trust,02/01/2023,Med & Surg Equip Hire,Div Of Women & Clin Support,Ukri-Mrc,4443575,"35,880.00",Optional requirement only,0
Department of Health,Imperial College Healthcare NHS Trust,02/01/2023,Med & Surg Equip Leases,Estates Directorate,Arjo Uk Ltd,4724739,"115,657.70",Optional requirement only,0
Department of Health,Imperial College Healthcare NHS Trust,02/01/2023,Med & Surg Equip Repair,Div Of Women & Clin Support,Ge Medical Systems Limited,4727887,"95,040.00",Optional requirement only,0
Department of Health,Imperial College Healthcare NHS Trust,02/01/2023,Other Research Exp - Pay,Rd Medical Directorate,London Borough Of Hammersmith & Fulham,4733753,"74,348.26",Optional requirement only,0
Department of Health,Imperial College Healthcare NHS Trust,02/01/2023,Other Research Exp - Pay,Rd Surgery & Cancer Division,Imperial College London,4734814,"55,584.04",Optional requirement only,0
Department of Health,Imperial College Healthcare NHS Trust,02/01/2023,Other Research Exp - Pay,Rd Surgery & Cancer Division,Imperial College London,4734852,"53,616.03",Optional requirement only,0
Department of Health,Imperial College Healthcare NHS Trust,02/01/2023,Phone Instal & Maint,Information & Comms Technology,Exponential -E Ltd,4695759,"83,193.55",Optional requirement only,0
Department of Health,Imperial College Healthcare NHS Trust,02/01/2023,Rent,Div Of Women & Clin Support,Nhs Property Services Ltd,4463788,"25,377.36",Optional requirement only,0
Department of Health,Imperial College Healthcare NHS Trust,02/01/2023,Rent,Div Of Women & Clin Support,Nhs Property Services Ltd,4590364,"28,877.04",Optional requirement only,0
Department of Health,Imperial College Healthcare NHS Trust,02/01/2023,Rent,Div Of Women & Clin Support,Nhs Property Services Ltd,4614990,"28,877.04",Optional requirement only,0
Department of Health,Imperial College Healthcare NHS Trust,02/01/2023,Rent,Div Of Women & Clin Support,Nhs Property Services Ltd,4667863,"28,942.83",Optional requirement only,0
Department of Health,Imperial College Healthcare NHS Trust,02/01/2023,Rent,Div Of Women & Clin Support,Nhs Property Services Ltd,4727134,"28,942.83",Optional requirement only,0
Department of Health,Imperial College Healthcare NHS Trust,02/01/2023,Rent,Div Of Women & Clin Support,Nhs Property Services Ltd,4727144,"30,096.16",Optional requirement only,0
Department of Health,Imperial College Healthcare NHS Trust,02/01/2023,Season Ticket Cr Abellio,Ichnt Balance Sheet,Abellio Transport Holdings Ltd,4736473,"39,186.40",Optional requirement only,0
Department of Health,Imperial College Healthcare NHS Trust,02/01/2023,Services Received - Nhsts,"Div Of Surg, Cardiov & Cancer",London North West Univ Healthcare Nhs Trust,4735992,"47,112.00",Optional requirement only,0
Department of Health,Imperial College Healthcare NHS Trust,02/01/2023,Srvcsrecd-Other Nhs,Pathology,Nhs Blood And Transplant,4423819,"27,907.37",Optional requirement only,0
Department of Health,Imperial College Healthcare NHS Trust,02/01/2023,Supplies Issues Recharges,Ichnt Balance Sheet,Supply Chain Coordination Ltd (Sccl) ( 101),4724712,"81,536.45",Optional requirement only,Stock
Department of Health,Imperial College Healthcare NHS Trust,02/01/2023,Supplies Issues Recharges,Ichnt Balance Sheet,Supply Chain Coordination Ltd (Sccl) ( 101),4724713,"86,221.20",Optional requirement only,Stock
Department of Health,Imperial College Healthcare NHS Trust,02/01/2023,Supplies Issues Recharges,Ichnt Balance Sheet,Supply Chain Coordination Ltd (Sccl) ( 101),4724714,"98,639.36",Optional requirement only,Stock
Department of Health,Imperial College Healthcare NHS Trust,02/01/2023,Supplies Issues Recharges,Ichnt Balance Sheet,Supply Chain Coordination Ltd (Sccl) ( 101),4724716,"83,788.80",Optional requirement only,Stock
Department of Health,Imperial College Healthcare NHS Trust,02/01/2023,Supplies Issues Recharges,Ichnt Balance Sheet,Supply Chain Coordination Ltd (Sccl) ( 101),4724717,"88,089.04",Optional requirement only,Stock
Department of Health,Imperial College Healthcare NHS Trust,02/01/2023,Supplies Issues Recharges,Ichnt Balance Sheet,Supply Chain Coordination Ltd (Sccl) ( 101),4726601,"33,630.17",Optional requirement only,Stock
Department of Health,Imperial College Healthcare NHS Trust,02/01/2023,Supplies Issues Recharges,Ichnt Balance Sheet,Supply Chain Coordination Ltd (Sccl) ( 101),4726602,"62,375.50",Optional requirement only,Stock
Department of Health,Imperial College Healthcare NHS Trust,02/01/2023,Supplies Issues Recharges,Ichnt Balance Sheet,Supply Chain Coordination Ltd (Sccl) ( 101),4726607,"71,727.99",Optional requirement only,Stock
Department of Health,Imperial College Healthcare NHS Trust,02/01/2023,Supplies Issues Recharges,Ichnt Balance Sheet,Supply Chain Coordination Ltd (Sccl) ( 101),4726619,"56,231.50",Optional requirement only,Stock
Department of Health,Imperial College Healthcare NHS Trust,02/01/2023,Supplies Issues Recharges,Ichnt Balance Sheet,Supply Chain Coordination Ltd (Sccl) ( 101),4726623,"82,902.46",Optional requirement only,Stock
Department of Health,Imperial College Healthcare NHS Trust,02/01/2023,Supplies Issues Recharges,Ichnt Balance Sheet,Supply Chain Coordination Ltd (Sccl) ( 101),4726624,"200,021.08",Optional requirement only,Stock
Department of Health,Imperial College Healthcare NHS Trust,02/01/2023,Supplies Issues Recharges,Ichnt Balance Sheet,Supply Chain Coordination Ltd (Sccl) ( 101),4728669,"143,297.94",Optional requirement only,Stock
Department of Health,Imperial College Healthcare NHS Trust,02/01/2023,Supplies Issues Recharges,Ichnt Balance Sheet,Supply Chain Coordination Ltd (Sccl) ( 101),4728671,"154,278.09",Optional requirement only,Stock
Department of Health,Imperial College Healthcare NHS Trust,02/01/2023,Supplies Issues Recharges,Ichnt Balance Sheet,Supply Chain Coordination Ltd (Sccl) ( 101),4728672,"46,097.19",Optional requirement only,Stock
Department of Health,Imperial College Healthcare NHS Trust,02/01/2023,Supplies Issues Recharges,Ichnt Balance Sheet,Supply Chain Coordination Ltd (Sccl) ( 101),4728673,"116,524.98",Optional requirement only,Stock
Department of Health,Imperial College Healthcare NHS Trust,02/01/2023,Supplies Issues Recharges,Ichnt Balance Sheet,Supply Chain Coordination Ltd (Sccl) ( 101),4729111,"144,072.05",Optional requirement only,Stock
Department of Health,Imperial College Healthcare NHS Trust,02/01/2023,Supplies Issues Recharges,Ichnt Balance Sheet,Supply Chain Coordination Ltd (Sccl) ( 101),4729112,"108,386.57",Optional requirement only,Stock
Department of Health,Imperial College Healthcare NHS Trust,02/01/2023,Supplies Issues Recharges,Ichnt Balance Sheet,Supply Chain Coordination Ltd (Sccl) ( 101),4733688,"139,244.81",Optional requirement only,Stock
Department of Health,Imperial College Healthcare NHS Trust,02/01/2023,Supplies Issues Recharges,Ichnt Balance Sheet,Supply Chain Coordination Ltd (Sccl) ( 101),4733689,"131,770.45",Optional requirement only,Stock
Department of Health,Imperial College Healthcare NHS Trust,02/01/2023,Supplies Issues Recharges,Ichnt Balance Sheet,Supply Chain Coordination Ltd (Sccl) ( 101),4733690,"43,815.90",Optional requirement only,Stock
Department of Health,Imperial College Healthcare NHS Trust,02/01/2023,Supplies Issues Recharges,Ichnt Balance Sheet,Supply Chain Coordination Ltd (Sccl) ( 101),4733691,"100,240.60",Optional requirement only,Stock
Department of Health,Imperial College Healthcare NHS Trust,02/01/2023,Supplies Issues Recharges,Ichnt Balance Sheet,Supply Chain Coordination Ltd (Sccl) ( 101),4733692,"122,895.67",Optional requirement only,Stock
Department of Health,Imperial College Healthcare NHS Trust,02/01/2023,Supplies Issues Recharges,Ichnt Balance Sheet,Supply Chain Coordination Ltd (Sccl) ( 101),4733693,"131,232.61",Optional requirement only,Stock
Department of Health,Imperial College Healthcare NHS Trust,02/01/2023,Training Expenses,Human Resources,Kallidus Limited,4715263,"66,708.00",Optional requirement only,0
Department of Health,Imperial College Healthcare NHS Trust,02/02/2023,Contr Photocopier Rental,Information & Comms Technology,Canon (Uk) Ltd,4657899,"126,637.09",Optional requirement only,0
Department of Health,Imperial College Healthcare NHS Trust,02/02/2023,Cy Auc -Addns- P & M-Purchased,Capital Summary,Stryker Uk Ltd,4734812,"48,782.64",Optional requirement only,0
Department of Health,Imperial College Healthcare NHS Trust,02/02/2023,Electricity,Estates Directorate,Edf Energy Customer Plc,4739160,"44,138.88",Optional requirement only,0
Department of Health,Imperial College Healthcare NHS Trust,02/02/2023,Electricity,Estates Directorate,Edf Energy Customer Plc,4739163,"53,756.06",Optional requirement only,0
Department of Health,Imperial College Healthcare NHS Trust,02/02/2023,Electricity,Estates Directorate,Edf Energy Customer Plc,4739165,"83,831.37",Optional requirement only,0
Department of Health,Imperial College Healthcare NHS Trust,02/02/2023,Electricity,Estates Directorate,Edf Energy Customer Plc,4739169,"271,761.98",Optional requirement only,0
Department of Health,Imperial College Healthcare NHS Trust,02/02/2023,Electricity,Estates Directorate,Edf Energy Customer Plc,4739173,"98,963.20",Optional requirement only,0
Department of Health,Imperial College Healthcare NHS Trust,02/02/2023,Electricity,Estates Directorate,Edf Energy Customer Plc,4739175,"779,212.57",Optional requirement only,0
Department of Health,Imperial College Healthcare NHS Trust,02/02/2023,Gas,Estates Directorate,Total Gas & Power Ltd,4739191,"449,185.49",Optional requirement only,0
Department of Health,Imperial College Healthcare NHS Trust,02/02/2023,Gas,Estates Directorate,Total Gas & Power Ltd,4739192,"251,176.77",Optional requirement only,0
Department of Health,Imperial College Healthcare NHS Trust,02/02/2023,Gas,Estates Directorate,Total Gas & Power Ltd,4739194,"207,536.61",Optional requirement only,0
Department of Health,Imperial College Healthcare NHS Trust,02/02/2023,Ic Pay Recharge In: Med,"Div Of Surg, Cardiov & Cancer",Imperial College London,4720630,"29,679.07",Optional requirement only,0
Department of Health,Imperial College Healthcare NHS Trust,02/02/2023,Items Pending Investigation,Ichnt Balance Sheet,Imperial College London,4734869,"156,526.16",Optional requirement only,0
Department of Health,Imperial College Healthcare NHS Trust,02/02/2023,Jac - Stock,Balance Sheet St Marys,Bms Pharmaceuticals Ltd (0034),4739772,"49,754.16",Optional requirement only,Stock
Department of Health,Imperial College Healthcare NHS Trust,02/02/2023,Jac - Stock,Balance Sheet St Marys,Qualasept Ltd,4739710,"54,932.04",Optional requirement only,Stock
Department of Health,Imperial College Healthcare NHS Trust,02/02/2023,Other Research Exp - Non-Pay,Rd Medical Directorate,Chelsea And  Westminster Hospital Nhs Ft,4736729,"426,503.00",Optional requirement only,0
Department of Health,Imperial College Healthcare NHS Trust,02/02/2023,Other Research Exp - Pay,Rdwomen And Children Division,Imperial College London,4736178,"30,475.97",Optional requirement only,0
Department of Health,Imperial College Healthcare NHS Trust,02/02/2023,Other Transport Costs,Pathology,Dhl Supply Chain  (Former Excel),51961,"144,110.84",Optional requirement only,0
Department of Health,Imperial College Healthcare NHS Trust,02/02/2023,Other Transport Costs,Pathology,Dhl Supply Chain  (Former Excel),51962,"76,719.26",Optional requirement only,0
Department of Health,Imperial College Healthcare NHS Trust,02/02/2023,Other Transport Costs,Pathology,Dhl Supply Chain  (Former Excel),51963,"36,246.94",Optional requirement only,0
Department of Health,Imperial College Healthcare NHS Trust,02/02/2023,Srvcsrecd-Other Nhs,Finance Directorate,Central London Community Healthcare Nhs Trust,4709244,"1,370,477.69",Optional requirement only,0
Department of Health,Imperial College Healthcare NHS Trust,02/02/2023,Srvcsrecd-Other Nhs,Finance Directorate,Central London Community Healthcare Nhs Trust,4736463,"479,370.12",Optional requirement only,0
Department of Health,Imperial College Healthcare NHS Trust,02/07/2023,Blood Products,"Div Of Surg, Cardiov & Cancer",Hca International,4739449,"55,280.00",Optional requirement only,0
Department of Health,Imperial College Healthcare NHS Trust,02/07/2023,Books  Journals & Subscr,Office Of Chief Executive,Imperial College London,4717569,"145,550.86",Optional requirement only,0
Department of Health,Imperial College Healthcare NHS Trust,02/07/2023,Cy Auc -Addns-Bd Purchased,Capital Summary,Breathe Energy Ltd,4721838,"3,360,694.00",Optional requirement only,0
Department of Health,Imperial College Healthcare NHS Trust,02/07/2023,Cy Auc -Addns-Bd Purchased,Capital Summary,Breathe Energy Ltd,4725304,"1,111,245.00",Optional requirement only,0
Department of Health,Imperial College Healthcare NHS Trust,02/07/2023,Cy Auc -Addns-Bd Purchased,Capital Summary,Wb Power Services Ltd,4729213,"133,583.52",Optional requirement only,0
Department of Health,Imperial College Healthcare NHS Trust,02/07/2023,Cy Auc -Addns- It Eqpt-Addns,Capital Summary,Nhs North West London Ccg,4740850,"165,000.00",Optional requirement only,0
Department of Health,Imperial College Healthcare NHS Trust,02/07/2023,Drugs Nhs,"Div Of Surg, Cardiov & Cancer",Healthcare At Home Ltd,4736946,"26,399.70",Optional requirement only,0
Department of Health,Imperial College Healthcare NHS Trust,02/07/2023,Drugs Pbr Excluded,"Div Of Surg, Cardiov & Cancer",Healthcare At Home Ltd,4736938,"30,149.70",Optional requirement only,0
Department of Health,Imperial College Healthcare NHS Trust,02/07/2023,Drugs Pbr Excluded,"Div Of Surg, Cardiov & Cancer",Healthcare At Home Ltd,4736945,"67,349.70",Optional requirement only,0
Department of Health,Imperial College Healthcare NHS Trust,02/07/2023,Equip Maint Contracts,Estates Directorate,Intercept Med Ltd,4723426,"61,698.00",Optional requirement only,0
Department of Health,Imperial College Healthcare NHS Trust,02/07/2023,Equip Maint Contracts,Estates Directorate,Intercept Med Ltd,4723429,"82,956.00",Optional requirement only,0
Department of Health,Imperial College Healthcare NHS Trust,02/07/2023,Ext Contract - Patient Travel,Estates Directorate,Falck Uk Ambulance Service Limited,4741109,"1,829,237.12",Optional requirement only,0
Department of Health,Imperial College Healthcare NHS Trust,02/07/2023,Items Pending Investigation,Ichnt Balance Sheet,King'S College Hospital Nhs Foundation Trust,4711269,"45,390.00",Optional requirement only,0
Department of Health,Imperial College Healthcare NHS Trust,02/07/2023,Jac - Stock,Balance Sheet St Marys,Alexion Pharma Uk Ltd,4740891,"60,480.00",Optional requirement only,Stock
Department of Health,Imperial College Healthcare NHS Trust,02/07/2023,Jac - Stock,Balance Sheet St Marys,Janssen-Cilag Ltd,4740131,"52,468.08",Optional requirement only,Stock
Department of Health,Imperial College Healthcare NHS Trust,02/07/2023,Jac - Stock,Balance Sheet St Marys,Polar Speed Distribution Ltd,4740829,"53,298.00",Optional requirement only,Stock
Department of Health,Imperial College Healthcare NHS Trust,02/07/2023,Jac - Stock,Balance Sheet St Marys,Qualasept Ltd,4738326,"34,564.68",Optional requirement only,Stock
Department of Health,Imperial College Healthcare NHS Trust,02/07/2023,Jac - Stock,Balance Sheet St Marys,Roche Products Ltd,4740219,"264,616.80",Optional requirement only,Stock
Department of Health,Imperial College Healthcare NHS Trust,02/07/2023,Jac - Stock,Balance Sheet St Marys,Roche Products Ltd,4740919,"67,158.00",Optional requirement only,Stock
Department of Health,Imperial College Healthcare NHS Trust,02/07/2023,Laboratory Chemicals/ Reagents,Pathology,Alpha Biotech Ltd,50735,"42,992.56",Optional requirement only,0
Department of Health,Imperial College Healthcare NHS Trust,02/07/2023,Laboratory Chemicals/ Reagents,Pathology,Alpha Biotech Ltd,51259,"42,992.56",Optional requirement only,0
Department of Health,Imperial College Healthcare NHS Trust,02/07/2023,Laboratory Chemicals/ Reagents,Pathology,Alpha Biotech Ltd,51260,"42,992.56",Optional requirement only,0
Department of Health,Imperial College Healthcare NHS Trust,02/07/2023,Lease Charges,Information & Comms Technology,Xerox (Uk) Ltd,4725457,"30,051.83",Optional requirement only,0
Department of Health,Imperial College Healthcare NHS Trust,02/07/2023,Lecture Fees,Medical Director Summary,Imperial College London,4723726,"51,371.74",Optional requirement only,0
Department of Health,Imperial College Healthcare NHS Trust,02/07/2023,Med & Surg Equip General,"Div Of Surg, Cardiov & Cancer",Vanguard Healthcare Solutions Ltd,4742474,"98,328.00",Optional requirement only,0
Department of Health,Imperial College Healthcare NHS Trust,02/07/2023,Med & Surg Equip Leases,"Div Of Surg, Cardiov & Cancer",Intuitive Surgical Ltd,4724695,"34,248.00",Optional requirement only,0
Department of Health,Imperial College Healthcare NHS Trust,02/07/2023,Med & Surg Maint Contract,Div Of Women & Clin Support,Hermes Medical Solutions,4731621,"36,487.20",Optional requirement only,0
Department of Health,Imperial College Healthcare NHS Trust,02/07/2023,Other Transport Costs,Estates Directorate,Dhl Supply Chain  (Former Excel),4738896,"35,564.06",Optional requirement only,0
Department of Health,Imperial College Healthcare NHS Trust,02/07/2023,Purch Hcare Independent Sector,Div Of Med & Integrated Care,Homelink Healthcare Ltd,4740378,"43,333.15",Optional requirement only,0
Department of Health,Imperial College Healthcare NHS Trust,02/07/2023,Purch Hcare Independent Sector,"Div Of Surg, Cardiov & Cancer",Homelink Healthcare Ltd,4735234,"53,061.00",Optional requirement only,0
Department of Health,Imperial College Healthcare NHS Trust,02/09/2023,Acton Housing Association,Ichnt Balance Sheet,A2dominion Housing Group Ltd,4743882,"351,350.17",Optional requirement only,Housing Deductions
Department of Health,Imperial College Healthcare NHS Trust,02/09/2023,Agency Consultant,Pathology,Reed Specialist Recruitment Ltd,52133,"30,556.98",Optional requirement only,0
Department of Health,Imperial College Healthcare NHS Trust,02/09/2023,Agency Nursing: Qualified,Div Of Med & Integrated Care,Reed Specialist Recruitment Ltd,4743972,"318,209.61",Optional requirement only,0
Department of Health,Imperial College Healthcare NHS Trust,02/09/2023,Agency Nursing: Qualified,"Div Of Surg, Cardiov & Cancer",Reed Specialist Recruitment Ltd,4743972,"416,702.74",Optional requirement only,0
Department of Health,Imperial College Healthcare NHS Trust,02/09/2023,Agency Nursing: Qualified,Div Of Women & Clin Support,Reed Specialist Recruitment Ltd,4743972,"30,718.69",Optional requirement only,0
Department of Health,Imperial College Healthcare NHS Trust,02/09/2023,Agency Nursing: Qualified,West London Children'S Healthcare,Reed Specialist Recruitment Ltd,4743972,"71,651.12",Optional requirement only,0
Department of Health,Imperial College Healthcare NHS Trust,02/09/2023,Audit Fees: Internal,Finance Directorate,Kpmg Llp,4705686,"31,428.00",Optional requirement only,0
Department of Health,Imperial College Healthcare NHS Trust,02/09/2023,Computer Maintenance,Pathology,Sunquest Information Systems (Europe) Ltd,51188,"33,966.00",Optional requirement only,0
Department of Health,Imperial College Healthcare NHS Trust,02/09/2023,Computer Software/License,Information & Comms Technology,Cdw Ltd,4738735,"52,600.80",Optional requirement only,0
Department of Health,Imperial College Healthcare NHS Trust,02/09/2023,Cy Auc -Addns- It Eqpt-Addns,Capital Summary,The Hillingdon Hospital Nhs Foundation Trust,4739279,"170,416.00",Optional requirement only,0
Department of Health,Imperial College Healthcare NHS Trust,02/09/2023,Cy Auc -Addns- Prof Fee)-Purch,Capital Summary,Pa Consulting Services Ltd,4742587,"73,570.80",Optional requirement only,0
Department of Health,Imperial College Healthcare NHS Trust,02/09/2023,Engineering Contracts,Rd Surgery & Cancer Division,Accenture (Uk) Ltd,4743012,"68,806.20",Optional requirement only,0
Department of Health,Imperial College Healthcare NHS Trust,02/09/2023,Jac - Stock,Balance Sheet St Marys,Alloga Uk Ltd,4742308,"97,632.00",Optional requirement only,Stock
Department of Health,Imperial College Healthcare NHS Trust,02/09/2023,Jac - Stock,Balance Sheet St Marys,Bayer Plc,4742808,"40,148.06",Optional requirement only,Stock
Department of Health,Imperial College Healthcare NHS Trust,02/09/2023,Jac - Stock,Balance Sheet St Marys,Csl Behring Uk Ltd,4741679,"30,864.80",Optional requirement only,Stock
Department of Health,Imperial College Healthcare NHS Trust,02/09/2023,Jac - Stock,Balance Sheet St Marys,Qualasept Ltd,4742828,"55,367.94",Optional requirement only,Stock
Department of Health,Imperial College Healthcare NHS Trust,02/09/2023,Lab Equip Maint / Repairs,Div Of Women & Clin Support,T-Scan Ltd,4724737,"57,114.10",Optional requirement only,0
Department of Health,Imperial College Healthcare NHS Trust,02/09/2023,Lease Rents,Estates Directorate,London Borough Of Hammersmith & Fulham,4741104,"129,661.36",Optional requirement only,0
Department of Health,Imperial College Healthcare NHS Trust,02/09/2023,Med & Surg Equip General,"Div Of Surg, Cardiov & Cancer",Intuitive Surgical Ltd,4628800,"32,541.80",Optional requirement only,0
Department of Health,Imperial College Healthcare NHS Trust,02/09/2023,Med & Surg Equip General,"Div Of Surg, Cardiov & Cancer",Intuitive Surgical Ltd,4635765,"32,541.80",Optional requirement only,0
Department of Health,Imperial College Healthcare NHS Trust,02/09/2023,Med & Surg Equip General,"Div Of Surg, Cardiov & Cancer",Intuitive Surgical Ltd,4648998,"32,541.80",Optional requirement only,0
Department of Health,Imperial College Healthcare NHS Trust,02/09/2023,Med & Surg Equip General,"Div Of Surg, Cardiov & Cancer",Intuitive Surgical Ltd,4674063,"32,541.80",Optional requirement only,0
Department of Health,Imperial College Healthcare NHS Trust,02/09/2023,Med & Surg Equip General,"Div Of Surg, Cardiov & Cancer",Intuitive Surgical Ltd,4686174,"32,541.80",Optional requirement only,0
Department of Health,Imperial College Healthcare NHS Trust,02/09/2023,Med & Surg Equip General,"Div Of Surg, Cardiov & Cancer",Intuitive Surgical Ltd,4707886,"32,541.80",Optional requirement only,0
Department of Health,Imperial College Healthcare NHS Trust,02/09/2023,Med & Surg Equip General,"Div Of Surg, Cardiov & Cancer",Intuitive Surgical Ltd,4727894,"32,541.80",Optional requirement only,0
Department of Health,Imperial College Healthcare NHS Trust,02/09/2023,Service Charge,Pathology,Getinge Ltd,48967,"63,051.84",Optional requirement only,0
Department of Health,Imperial College Healthcare NHS Trust,02/09/2023,Thames Valley Housing Assoc,Ichnt Balance Sheet,Metropolitan Thames Valley,4743883,"109,752.21",Optional requirement only,Housing Deductions
Department of Health,Imperial College Healthcare NHS Trust,02/09/2023,Transcription Services,Information & Comms Technology,Dictate It Ltd,4724949,"39,312.95",Optional requirement only,0
Department of Health,Imperial College Healthcare NHS Trust,02/09/2023,Transcription Services,Information & Comms Technology,Dictate It Ltd,4725027,"35,665.96",Optional requirement only,0
Department of Health,Imperial College Healthcare NHS Trust,2/14/2023,Cleaning Materials,Estates Directorate,Synergy Health Managed Services Ltd,4745075,"59,767.36",Optional requirement only,0
Department of Health,Imperial College Healthcare NHS Trust,2/14/2023,Clinical Managed Service Contr,Pathology,Chelsea And  Westminster Hospital Nhs Ft,51338,"34,177.68",Optional requirement only,0
Department of Health,Imperial College Healthcare NHS Trust,2/14/2023,Computer Software/License,Press & Communications,Sitecore Uk Limited,4481220,"39,060.00",Optional requirement only,0
Department of Health,Imperial College Healthcare NHS Trust,2/14/2023,Contr Other External,Estates Directorate,Cbre Managed Services Ltd,4742301,"772,866.90",Optional requirement only,0
Department of Health,Imperial College Healthcare NHS Trust,2/14/2023,Cy Auc -Addns- It Eqpt-Addns,Capital Summary,Advanced Communication Services Ltd (Acs),4744004,"30,372.00",Optional requirement only,0
Department of Health,Imperial College Healthcare NHS Trust,2/14/2023,Decontamination Services,Estates Directorate,London North West Univ Healthcare Nhs Trust,4715656,"25,697.10",Optional requirement only,0
Department of Health,Imperial College Healthcare NHS Trust,2/14/2023,Drugs Nhs,Div Of Women & Clin Support,Nhs Business Services Authority,4737829,"27,508.77",Optional requirement only,0
Department of Health,Imperial College Healthcare NHS Trust,2/14/2023,Engineering Contracts,"Div Of Surg, Cardiov & Cancer",Varian Medical Systems Uk Ltd,4691927,"43,200.00",Optional requirement only,0
Department of Health,Imperial College Healthcare NHS Trust,2/14/2023,Equip Maint Contracts,Estates Directorate,Cbre Managed Services Ltd,4742303,"36,381.76",Optional requirement only,0
Department of Health,Imperial College Healthcare NHS Trust,2/14/2023,Ext Contr Laundry,Estates Directorate,Synergy Health Managed Services Ltd,4745077,"70,567.58",Optional requirement only,0
Department of Health,Imperial College Healthcare NHS Trust,2/14/2023,Ext Contr Laundry,Estates Directorate,Synergy Health Managed Services Ltd,4745078,"65,868.06",Optional requirement only,0
Department of Health,Imperial College Healthcare NHS Trust,2/14/2023,Ext Contr Laundry,Estates Directorate,Synergy Health Managed Services Ltd,4745079,"71,526.93",Optional requirement only,0
Department of Health,Imperial College Healthcare NHS Trust,2/14/2023,Ext Contr Logistics,Finance Directorate,Eleanor Hospital Logistics Ltd,4739932,"205,951.12",Optional requirement only,0
Department of Health,Imperial College Healthcare NHS Trust,2/14/2023,Ext Contr Logistics,Finance Directorate,Eleanor Hospital Logistics Ltd,4740313,"205,951.12",Optional requirement only,0
Department of Health,Imperial College Healthcare NHS Trust,2/14/2023,Heating Oil,Estates Directorate,Certas Energy Uk Ltd,4736828,"31,353.91",Optional requirement only,0
Department of Health,Imperial College Healthcare NHS Trust,2/14/2023,Hosting Service Expenses,Press & Communications,Sitecore Uk Limited,4698346,"59,760.00",Optional requirement only,0
Department of Health,Imperial College Healthcare NHS Trust,2/14/2023,Isotopes,Div Of Women & Clin Support,Curium Pharma Uk Ltd,4740324,"77,854.80",Optional requirement only,0
Department of Health,Imperial College Healthcare NHS Trust,2/14/2023,Jac - Stock,Balance Sheet St Marys,Csl Behring Uk Ltd,4745611,"80,889.00",Optional requirement only,Stock
Department of Health,Imperial College Healthcare NHS Trust,2/14/2023,Jac - Stock,Balance Sheet St Marys,Csl Behring Uk Ltd,4745911,"98,464.00",Optional requirement only,Stock
Department of Health,Imperial College Healthcare NHS Trust,2/14/2023,Jac - Stock,Balance Sheet St Marys,Csl Behring Uk Ltd,4745912,"56,512.00",Optional requirement only,Stock
Department of Health,Imperial College Healthcare NHS Trust,2/14/2023,Jac - Stock,Balance Sheet St Marys,Janssen-Cilag Ltd,4745556,"31,005.12",Optional requirement only,Stock
Department of Health,Imperial College Healthcare NHS Trust,2/14/2023,Med & Prof Fees (Imaging Cons),Ichnt Balance Sheet,Lindo Wing Radiology Llp,4746919,"127,062.11",Optional requirement only,0
Department of Health,Imperial College Healthcare NHS Trust,2/14/2023,Other Research Exp - Pay,Rd Medical Directorate,Imperial College London,4725222,"208,610.00",Optional requirement only,0
Department of Health,Imperial College Healthcare NHS Trust,2/14/2023,Other Research Exp - Pay,Rd Medical Directorate,Imperial College London,4729753,"53,707.55",Optional requirement only,0
Department of Health,Imperial College Healthcare NHS Trust,2/14/2023,Other Research Exp - Pay,Rd Surgery & Cancer Division,Imperial College London,4731396,"109,114.57",Optional requirement only,0
Department of Health,Imperial College Healthcare NHS Trust,2/14/2023,Other Research Exp - Pay,Rd Surgery & Cancer Division,Imperial College London,4738533,"62,306.51",Optional requirement only,0
Department of Health,Imperial College Healthcare NHS Trust,2/14/2023,Other Research Exp - Pay,Rd Surgery & Cancer Division,Imperial College London,4738893,"46,813.11",Optional requirement only,0
Department of Health,Imperial College Healthcare NHS Trust,2/14/2023,Other Research Exp - Pay,Rd Surgery & Cancer Division,Imperial College London,4739931,"67,816.93",Optional requirement only,0
Department of Health,Imperial College Healthcare NHS Trust,2/14/2023,Postage & Carriage,Estates Directorate,Whistl Uk Limited,4746808,"34,833.71",Optional requirement only,0
Department of Health,Imperial College Healthcare NHS Trust,2/14/2023,Purch Hcare Independent Sector,Div Of Med & Integrated Care,London Central & West Unscheduled Care Collab,4746815,"352,444.23",Optional requirement only,0
Department of Health,Imperial College Healthcare NHS Trust,2/14/2023,Rent,Estates Directorate,Metropolitan Thames Valley,4743055,"51,587.29",Optional requirement only,0
Department of Health,Imperial College Healthcare NHS Trust,2/14/2023,Supplies Issues Recharges,Ichnt Balance Sheet,Supply Chain Coordination Ltd (Sccl) ( 101),4738023,"93,181.42",Optional requirement only,Stock
Department of Health,Imperial College Healthcare NHS Trust,2/14/2023,Supplies Issues Recharges,Ichnt Balance Sheet,Supply Chain Coordination Ltd (Sccl) ( 101),4738025,"122,714.74",Optional requirement only,Stock
Department of Health,Imperial College Healthcare NHS Trust,2/14/2023,Supplies Issues Recharges,Ichnt Balance Sheet,Supply Chain Coordination Ltd (Sccl) ( 101),4738026,"106,178.17",Optional requirement only,Stock
Department of Health,Imperial College Healthcare NHS Trust,2/14/2023,Supplies Issues Recharges,Ichnt Balance Sheet,Supply Chain Coordination Ltd (Sccl) ( 101),4738027,"89,091.74",Optional requirement only,Stock
Department of Health,Imperial College Healthcare NHS Trust,2/14/2023,Supplies Issues Recharges,Ichnt Balance Sheet,Supply Chain Coordination Ltd (Sccl) ( 101),4738028,"123,157.98",Optional requirement only,Stock
Department of Health,Imperial College Healthcare NHS Trust,2/14/2023,Supplies Issues Recharges,Ichnt Balance Sheet,Supply Chain Coordination Ltd (Sccl) ( 101),4738029,"35,854.67",Optional requirement only,Stock
Department of Health,Imperial College Healthcare NHS Trust,2/14/2023,Supplies Issues Recharges,Ichnt Balance Sheet,Supply Chain Coordination Ltd (Sccl) ( 101),4742188,"134,292.49",Optional requirement only,Stock
Department of Health,Imperial College Healthcare NHS Trust,2/14/2023,Supplies Issues Recharges,Ichnt Balance Sheet,Supply Chain Coordination Ltd (Sccl) ( 101),4742189,"126,112.26",Optional requirement only,Stock
Department of Health,Imperial College Healthcare NHS Trust,2/14/2023,Supplies Issues Recharges,Ichnt Balance Sheet,Supply Chain Coordination Ltd (Sccl) ( 101),4742190,"103,283.79",Optional requirement only,Stock
Department of Health,Imperial College Healthcare NHS Trust,2/14/2023,Supplies Issues Recharges,Ichnt Balance Sheet,Supply Chain Coordination Ltd (Sccl) ( 101),4742191,"59,577.18",Optional requirement only,Stock
Department of Health,Imperial College Healthcare NHS Trust,2/14/2023,Supplies Issues Recharges,Ichnt Balance Sheet,Supply Chain Coordination Ltd (Sccl) ( 101),4742192,"131,906.56",Optional requirement only,Stock
Department of Health,Imperial College Healthcare NHS Trust,2/14/2023,Supplies Issues Recharges,Ichnt Balance Sheet,Supply Chain Coordination Ltd (Sccl) ( 101),4742193,"152,931.40",Optional requirement only,Stock
Department of Health,Imperial College Healthcare NHS Trust,2/16/2023,Cy Auc -Addns- Prof Fee)-Purch,Capital Summary,Pa Consulting Services Ltd,4717496,"156,980.40",Optional requirement only,0
Department of Health,Imperial College Healthcare NHS Trust,2/16/2023,Dialysers,Div Of Med & Integrated Care,Baxter Healthcare Ltd,4685157,"182,607.83",Optional requirement only,0
Department of Health,Imperial College Healthcare NHS Trust,2/16/2023,Drugs Pbr Excluded,"Div Of Surg, Cardiov & Cancer",Healthcare At Home Ltd,4746117,"26,399.70",Optional requirement only,0
Department of Health,Imperial College Healthcare NHS Trust,2/16/2023,Ic Pay Recharge In: Med,Div Of Women & Clin Support,Imperial College London,4735555,"35,000.00",Optional requirement only,0
Department of Health,Imperial College Healthcare NHS Trust,2/16/2023,Items Pending Investigation,Ichnt Balance Sheet,Baxter Healthcare Ltd,4640063,"65,265.01",Optional requirement only,0
Department of Health,Imperial College Healthcare NHS Trust,2/16/2023,Items Pending Investigation,Ichnt Balance Sheet,Baxter Healthcare Ltd,4649127,"192,184.46",Optional requirement only,0
Department of Health,Imperial College Healthcare NHS Trust,2/16/2023,Items Pending Investigation,Ichnt Balance Sheet,Baxter Healthcare Ltd,4673016,"37,984.29",Optional requirement only,0
Department of Health,Imperial College Healthcare NHS Trust,2/16/2023,Items Pending Investigation,Ichnt Balance Sheet,Baxter Healthcare Ltd,4705623,"172,858.20",Optional requirement only,0
Department of Health,Imperial College Healthcare NHS Trust,2/16/2023,Jac - Stock,Balance Sheet St Marys,Alloga Uk Ltd,4746572,"59,130.00",Optional requirement only,Stock
Department of Health,Imperial College Healthcare NHS Trust,2/16/2023,Jac - Stock,Balance Sheet St Marys,Alloga Uk Ltd,4746852,"146,448.00",Optional requirement only,Stock
Department of Health,Imperial College Healthcare NHS Trust,2/16/2023,Jac - Stock,Balance Sheet St Marys,Alloga Uk Ltd,4747336,"97,632.00",Optional requirement only,Stock
Department of Health,Imperial College Healthcare NHS Trust,2/16/2023,Jac - Stock,Balance Sheet St Marys,Baxter Healthcare Ltd,4745850,"29,213.54",Optional requirement only,Stock
Department of Health,Imperial College Healthcare NHS Trust,2/16/2023,Jac - Stock,Balance Sheet St Marys,Bayer Plc,4746539,"50,185.08",Optional requirement only,Stock
Department of Health,Imperial College Healthcare NHS Trust,2/16/2023,Jac - Stock,Balance Sheet St Marys,Qualasept Ltd,4747352,"54,729.60",Optional requirement only,Stock
Department of Health,Imperial College Healthcare NHS Trust,2/16/2023,Jac - Stock,Balance Sheet St Marys,Roche Products Ltd,4747395,"48,410.28",Optional requirement only,Stock
Department of Health,Imperial College Healthcare NHS Trust,2/16/2023,Laboratory Bottles & Cont,Pathology,Medical Wire & Equipment Co (Bath) Ltd,51853,"38,004.00",Optional requirement only,0
Department of Health,Imperial College Healthcare NHS Trust,2/16/2023,Laboratory Chemicals/ Reagents,Pathology,Alpha Biotech Ltd,50736,"42,992.56",Optional requirement only,0
Department of Health,Imperial College Healthcare NHS Trust,2/16/2023,Lease Rents,Div Of Med & Integrated Care,Hayes Cottage Renal Unit Ltd,4742394,"78,750.00",Optional requirement only,0
Department of Health,Imperial College Healthcare NHS Trust,2/16/2023,Med & Surg Equip General,"Div Of Surg, Cardiov & Cancer",Healthshare Diagnostics Ltd,4741033,"165,146.70",Optional requirement only,0
Department of Health,Imperial College Healthcare NHS Trust,2/16/2023,Med & Surg Equip General,Div Of Women & Clin Support,Alliance Medical Ltd,4737372,"81,753.60",Optional requirement only,0
Department of Health,Imperial College Healthcare NHS Trust,2/16/2023,Nhs Pay Recharge In: Med,Div Of Med & Integrated Care,London North West Univ Healthcare Nhs Trust,4720398,"26,495.19",Optional requirement only,0
Department of Health,Imperial College Healthcare NHS Trust,2/16/2023,Nhs Pay Recharge In: Med,Div Of Med & Integrated Care,London North West Univ Healthcare Nhs Trust,4720399,"31,816.25",Optional requirement only,0
Department of Health,Imperial College Healthcare NHS Trust,2/16/2023,Nhs Pay Recharge In: Med,Div Of Med & Integrated Care,London North West Univ Healthcare Nhs Trust,4720400,"33,390.21",Optional requirement only,0
Department of Health,Imperial College Healthcare NHS Trust,2/16/2023,Provisions,Estates Directorate,Brakes Bros Ltd,4748067,"215,750.14",Optional requirement only,0
Department of Health,Imperial College Healthcare NHS Trust,2/16/2023,Recharge Out - Pay - Ic,Rd Surgery & Cancer Division,Imperial College London,4739873,"27,360.00",Optional requirement only,0
Department of Health,Imperial College Healthcare NHS Trust,2/16/2023,Services Received - Nhsts,Div Of Med & Integrated Care,London North West Univ Healthcare Nhs Trust,4739178,"38,621.52",Optional requirement only,0
Department of Health,Imperial College Healthcare NHS Trust,2/16/2023,Services Received - Nhsts,Div Of Med & Integrated Care,London North West Univ Healthcare Nhs Trust,4744212,"82,489.27",Optional requirement only,0
Department of Health,Imperial College Healthcare NHS Trust,2/16/2023,Srvcsrecd-Other Nhs,Pathology,Micropathology Ltd,52057,"32,627.00",Optional requirement only,0
Department of Health,Imperial College Healthcare NHS Trust,2/16/2023,Taxi & Other Vehicle Hire,Estates Directorate,Dhl Supply Chain  (Former Excel),4728968,"77,748.70",Optional requirement only,0
Department of Health,Imperial College Healthcare NHS Trust,2/20/2023,Income Tax Paye,Ichnt Balance Sheet,Hmrc Government Employers Account,4748476,"10,831,749.58",Optional requirement only,0
Department of Health,Imperial College Healthcare NHS Trust,2/20/2023,Income Tax Paye,Ichnt Balance Sheet,Hmrc Government Employers Account,4748477,"10,999,976.90",Optional requirement only,0
Department of Health,Imperial College Healthcare NHS Trust,2/21/2023,Bldg/Eng Equip Maint/Rep,Estates Directorate,Cbre Managed Services Ltd,4750207,"330,581.76",Optional requirement only,0
Department of Health,Imperial College Healthcare NHS Trust,2/21/2023,Blood Products,Pathology,Nhs Blood And Transplant,4746841,"27,037.52",Optional requirement only,0
Department of Health,Imperial College Healthcare NHS Trust,2/21/2023,Blood Products,Pathology,Nhs Blood And Transplant,4746853,"53,181.57",Optional requirement only,0
Department of Health,Imperial College Healthcare NHS Trust,2/21/2023,Cy Auc -Addns-Bd Purchased,Capital Summary,Breathe Energy Ltd,4731359,"2,501,938.00",Optional requirement only,0
Department of Health,Imperial College Healthcare NHS Trust,2/21/2023,Cy Auc -Addns-Bd Purchased,Capital Summary,Cbre Managed Services Ltd,4750207,"455,278.88",Optional requirement only,0
Department of Health,Imperial College Healthcare NHS Trust,2/21/2023,Cy Auc -Addns- It Eqpt-Addns,Capital Summary,Xerox (Uk) Ltd,4750895,"43,200.00",Optional requirement only,0
Department of Health,Imperial College Healthcare NHS Trust,2/21/2023,Cy Auc -Addns- P & M-Purchased,Capital Summary,B Braun Avitum Ltd,4669109,"111,475.39",Optional requirement only,0
Department of Health,Imperial College Healthcare NHS Trust,2/21/2023,Cy Auc -Addns- P & M-Purchased,Capital Summary,B Braun Avitum Ltd,4669418,"125,409.82",Optional requirement only,0
Department of Health,Imperial College Healthcare NHS Trust,2/21/2023,Cy Auc -Addns- P & M-Purchased,Capital Summary,B Braun Avitum Ltd,4688752,"167,213.09",Optional requirement only,0
Department of Health,Imperial College Healthcare NHS Trust,2/21/2023,Cy Auc -Addns- P & M-Purchased,Capital Summary,B Braun Avitum Ltd,4689576,"167,213.09",Optional requirement only,0
Department of Health,Imperial College Healthcare NHS Trust,2/21/2023,Cy Auc -Addns- P & M-Purchased,Capital Summary,B Braun Avitum Ltd,4698714,"125,409.82",Optional requirement only,0
Department of Health,Imperial College Healthcare NHS Trust,2/21/2023,Cy Auc -Addns- P & M-Purchased,Capital Summary,B Braun Avitum Ltd,4699844,"139,344.24",Optional requirement only,0
Department of Health,Imperial College Healthcare NHS Trust,2/21/2023,Cy Auc -Addns- P & M-Purchased,Capital Summary,B Braun Avitum Ltd,4749562,"125,409.82",Optional requirement only,0
Department of Health,Imperial College Healthcare NHS Trust,2/21/2023,Cy Auc -Addns- P & M-Purchased,Capital Summary,De Smit Medical Systems Ltd,4745997,"53,604.00",Optional requirement only,0
Department of Health,Imperial College Healthcare NHS Trust,2/21/2023,Cy Auc -Addns- P & M-Purchased,Capital Summary,Hamilton Medical Uk Ltd,4748676,"52,081.96",Optional requirement only,0
Department of Health,Imperial College Healthcare NHS Trust,2/21/2023,Cy Auc -Addns- P & M-Purchased,Capital Summary,Hamilton Medical Uk Ltd,4748678,"31,249.18",Optional requirement only,0
Department of Health,Imperial College Healthcare NHS Trust,2/21/2023,Dialysers,Div Of Med & Integrated Care,Nxstage Medical Uk Ltd,4682467,"39,794.12",Optional requirement only,0
Department of Health,Imperial College Healthcare NHS Trust,2/21/2023,Jac - Stock,Balance Sheet St Marys,Alloga Uk Ltd,4749601,"31,536.00",Optional requirement only,Stock
Department of Health,Imperial College Healthcare NHS Trust,2/21/2023,Jac - Stock,Balance Sheet St Marys,Alloga Uk Ltd,4749785,"97,632.00",Optional requirement only,Stock
Department of Health,Imperial College Healthcare NHS Trust,2/21/2023,Jac - Stock,Balance Sheet St Marys,Janssen-Cilag Ltd,4749586,"40,538.88",Optional requirement only,Stock
Department of Health,Imperial College Healthcare NHS Trust,2/21/2023,Med & Surg Equip Repair,Div Of Med & Integrated Care,Ge Medical Systems Limited,4750088,"34,201.04",Optional requirement only,0
Department of Health,Imperial College Healthcare NHS Trust,2/21/2023,Minor Works,Div Of Women & Clin Support,Cbre Managed Services Ltd,4750207,"88,153.12",Optional requirement only,0
Department of Health,Imperial College Healthcare NHS Trust,2/21/2023,Other Research Exp - Pay,Rd Medical Directorate,Central & North West London Nhs Ft,4746400,"28,498.00",Optional requirement only,0
Department of Health,Imperial College Healthcare NHS Trust,2/21/2023,Other Research Exp - Pay,Rd Medicine Division,Imperial College London,4745427,"82,414.36",Optional requirement only,0
Department of Health,Imperial College Healthcare NHS Trust,2/21/2023,Other Research Exp - Pay,Rd Surgery & Cancer Division,Imperial College London,4742471,"44,741.73",Optional requirement only,0
Department of Health,Imperial College Healthcare NHS Trust,2/21/2023,Other Research Exp - Pay,Rd Surgery & Cancer Division,Imperial College London,4746111,"46,754.00",Optional requirement only,0
Department of Health,Imperial College Healthcare NHS Trust,2/21/2023,Professional Services,Estates Directorate,Knight Security Limited,4745403,"34,047.77",Optional requirement only,0
Department of Health,Imperial College Healthcare NHS Trust,2/22/2023,Rates,Estates Directorate,London Borough Hammersmith & Fulham,4752189,"146,743.00",Optional requirement only,0
Department of Health,Imperial College Healthcare NHS Trust,2/22/2023,Rates,Estates Directorate,London Borough Hammersmith & Fulham,4752190,"129,010.00",Optional requirement only,0
,,,,,,Sum:,"58,635,261.07",,0
,,,,,Count:,255,,,0
